bitfinex/quotes_ETHUSD_20220226
["timestamp","ask_amount","ask_price","bid_price","bid_amount"]
[1645841225454,0.00509194,2808.9,2808.6,1.22622296]
[1645841225955,0.8992,2809.1,2808.6,1.22622296]
[1645841226394,0.8992,2809.1,2808.8,0.0296]
[1645841227099,1.3962,2809.0,2808.8,0.0296]
[1645841227295,1.3962,2809.0,2808.1,0.004248]
[1645841227797,0.8992,2809.0,2808.1,0.004248]
[1645841228296,0.8992,2809.0,2808.4,0.00571325]
[1645841229298,0.8992,2809.0,2808.5,0.3546]
[1645841229504,0.8992,2809.0,2808.4,0.3546]
[1645841229700,0.8992,2809.0,2808.6,1.39375499]
[1645841230148,0.8992,2809.0,2808.4,0.00571327]
[1645841230546,0.8992,2809.0,2808.1,0.004248]
[1645841230944,0.8992,2809.0,2808.4,0.00571332]
[1645841231352,0.8992,2809.0,2808.5,1.19273508]
[1645841232454,0.8992,2809.0,2808.5,1.04733508]
[1645841233049,0.25,2809.8,2808.5,1.04733508]
[1645841233250,0.00476623,2809.3,2808.6,0.004248]
[1645841233451,0.00476623,2809.3,2809.1,1.34964618]
[1645841234088,0.25,2809.8,2809.1,1.34964618]
[1645841234290,0.93006217,2810.4,2809.2,14.6846]
[1645841234291,0.00476699,2809.3,2809.2,14.6846]
[1645841234490,0.1423,2810.8,2809.2,11.9096]
[1645841234796,0.25,2810.9,2809.2,12.9096]
[1645841234987,0.25,2810.9,2809.3,0.004248]
[1645841235190,0.25,2810.9,2809.5,0.3546]
[1645841235387,0.25,2810.9,2809.6,0.783848]
[1645841235691,1.1492,2810.9,2809.6,0.283848]
[1645841236089,1.32715642,2810.7,2810.0,1.37519408]
[1645841236294,1.32715642,2810.7,2809.4,0.7796]
[1645841236693,1.32715642,2810.7,2809.4,1.0796]
[1645841236893,0.0050673,2810.5,2809.4,0.7796]
[1645841237445,0.0050673,2810.5,2809.9,1.2002728]
[1645841237735,0.8992,2810.7,2809.9,1.2002728]
[1645841237931,0.0050673,2810.1,2809.9,1.2002728]
[1645841238632,0.0050673,2810.1,2809.9,0.7002728]
[1645841238834,0.8992,2810.7,2809.9,0.7002728]
[1645841239233,0.0050673,2810.1,2809.9,0.7002728]
[1645841240033,0.25,2810.9,2809.9,0.7002728]
[1645841240535,0.0050673,2810.1,2809.9,0.7002728]
[1645841241493,0.0050673,2810.1,2809.9,1.0548728]
[1645841241992,0.0050673,2810.1,2809.7,1.6048]
[1645841242491,0.25,2810.2,2809.7,1.6048]
[1645841242894,0.0050673,2810.0,2809.7,1.6048]
[1645841243291,0.0050673,2810.0,2809.4,0.00422101]
[1645841243692,0.1423,2810.5,2809.4,0.00422101]
[1645841243892,0.25,2810.4,2809.4,0.00422101]
[1645841244092,0.0050673,2809.8,2809.4,0.00422101]
[1645841244292,0.0050673,2809.8,2809.5,0.3546]
[1645841244692,0.0050673,2809.8,2809.4,1.30900744]
[1645841244959,0.25,2810.4,2809.4,1.66360744]
[1645841245258,0.0050673,2809.8,2809.5,0.00422167]
[1645841245461,0.0050673,2809.8,2809.4,1.66360744]
[1645841246159,0.25,2810.4,2809.9,1.38337537]
[1645841246962,0.25,2810.4,2809.5,0.00422167]
[1645841248790,0.00505948,2810.1,2809.6,1.44072558]
[1645841249791,0.25,2810.4,2809.6,1.44072558]
[1645841249993,0.00505948,2810.0,2809.6,1.44072558]
[1645841250600,0.00505948,2810.0,2809.6,1.39072558]
[1645841250994,0.25,2810.4,2809.6,1.39072558]
[1645841251298,0.00505948,2809.9,2809.6,1.39072558]
[1645841251497,0.00505948,2809.9,2809.5,0.00422167]
[1645841251698,0.00505948,2809.9,2809.3,2.448]
[1645841251899,0.00505948,2809.9,2809.3,2.45222167]
[1645841252097,0.25,2810.4,2809.3,1.15222167]
[1645841252542,0.00505948,2809.7,2809.4,1.11414293]
[1645841253341,0.25,2810.4,2809.4,1.11414293]
[1645841253542,0.00505948,2809.7,2809.4,1.11414293]
[1645841253944,0.00505948,2809.7,2809.3,0.00422167]
[1645841254144,0.00505948,2809.7,2809.1,0.6546]
[1645841254948,0.00505948,2809.6,2809.1,0.6546]
[1645841255149,0.00505948,2809.6,2809.4,1.44054056]
[1645841256392,0.09735948,2810.3,2809.9,1.39365124]
[1645841256792,0.09735948,2810.3,2809.3,0.30422167]
[1645841256994,0.09735948,2810.3,2809.3,0.00422167]
[1645841257392,0.25,2810.4,2809.3,0.30422167]
[1645841257694,0.25,2810.4,2809.3,0.00422167]
[1645841257994,0.25,2810.4,2809.6,1.26256322]
[1645841259595,1.55623034,2810.4,2809.6,1.26256322]
[1645841259794,1.55623034,2810.4,2809.3,0.00422167]
[1645841260046,1.55623034,2810.4,2808.6,5.97108555]
[1645841260047,1.55623034,2810.4,2809.1,0.00422167]
[1645841260048,1.3961,2810.3,2809.1,0.00422167]
[1645841260242,0.4969,2810.3,2809.1,0.00422167]
[1645841260446,0.3546,2809.9,2809.1,0.00422167]
[1645841260641,0.1423,2809.8,2809.1,0.00422167]
[1645841260842,0.14734683,2809.8,2809.3,1.0706991]
[1645841261047,0.00504683,2809.8,2809.3,1.0706991]
[1645841261645,0.25,2809.9,2809.3,1.0706991]
[1645841262045,0.00504674,2809.7,2809.3,1.0706991]
[1645841262847,3.70233034,2810.4,2809.3,1.0706991]
[1645841263246,0.00504665,2809.7,2809.3,1.0706991]
[1645841264084,3.70233034,2810.4,2809.3,1.0706991]
[1645841264284,0.1423,2810.3,2809.3,1.0706991]
[1645841264890,0.3546,2810.2,2809.1,0.00422167]
[1645841265290,4.7538,2810.2,2809.1,0.00422167]
[1645841265488,3.8546,2810.2,2809.1,0.00422167]
[1645841265788,0.00503969,2809.8,2809.1,0.00422167]
[1645841265989,1.30253447,2809.6,2809.1,0.00422167]
[1645841266194,1.30253447,2809.6,2808.9,1.5535]
[1645841266195,0.3546,2809.5,2808.9,1.5535]
[1645841266594,1.30253447,2809.6,2808.8,0.00422167]
[1645841266792,1.30253447,2809.6,2808.8,0.00993003]
[1645841267644,1.30253447,2809.6,2808.8,0.00422167]
[1645841268045,1.30253447,2809.6,2808.8,0.00992995]
[1645841268645,1.30253447,2809.6,2808.7,0.85704702]
[1645841269246,0.8992,2809.7,2808.7,0.85704702]
[1645841269447,0.8992,2809.7,2808.7,1.21164702]
[1645841269846,0.8992,2809.7,2808.7,1.51164702]
[1645841270253,0.7992,2809.7,2808.8,0.1423]
[1645841270452,0.00151619,2809.3,2809.2,1.26995567]
[1645841271289,0.25,2809.8,2809.2,1.26995567]
[1645841271490,0.00505396,2809.4,2809.2,1.26995567]
[1645841271692,0.00505396,2809.4,2809.2,0.76995567]
[1645841272488,0.25,2809.8,2809.2,0.76995567]
[1645841272689,0.00505396,2809.4,2809.2,0.76995567]
[1645841273091,0.00505396,2809.4,2809.2,1.12455567]
[1645841273292,0.00505396,2809.4,2809.2,1.42455567]
[1645841273491,0.00505396,2809.4,2809.3,0.1423]
[1645841273692,3.0815,2810.4,2809.3,0.1423]
[1645841274096,0.00505396,2809.4,2809.3,0.1423]
[1645841274292,0.00505396,2809.4,2809.3,1.25545308]
[1645841274491,0.00505396,2809.4,2809.3,0.75545308]
[1645841274939,1.25244388,2810.3,2809.3,0.75545308]
[1645841275140,0.00505396,2809.5,2809.3,0.75545308]
[1645841275841,0.00505396,2809.5,2809.1,1.8352]
[1645841276247,1.1538,2810.1,2809.1,1.8352]
[1645841276447,0.00505396,2809.5,2809.1,1.8352]
[1645841277249,1.14510932,2809.5,2808.7,1.3666995]
[1645841277450,1.14510932,2809.5,2808.7,0.1464995]
[1645841277647,0.00505396,2809.4,2808.7,0.00560163]
[1645841278449,0.25,2809.6,2808.6,2.6585995]
[1645841278701,0.00505373,2809.3,2808.7,0.00560149]
[1645841278899,0.00505373,2809.3,2808.8,1.03955616]
[1645841279303,0.00505373,2809.3,2808.8,11.86955616]
[1645841279699,0.7992,2809.8,2808.8,1.03955616]
[1645841280103,0.00505373,2809.3,2808.8,1.03955616]
[1645841280302,0.00505373,2809.3,2808.8,11.86955616]
[1645841280503,0.00505373,2809.3,2808.8,1.03955616]
[1645841281002,0.25,2809.9,2809.3,1.22978055]
[1645841282206,0.25,2809.9,2808.8,1.2245]
[1645841282446,0.00505396,2809.7,2808.8,1.2245]
[1645841283335,0.3923,2809.9,2808.8,1.2245]
[1645841283536,0.00505396,2809.4,2808.8,1.2245]
[1645841284338,0.00505396,2809.4,2809.2,1.28318029]
[1645841284634,0.3923,2809.9,2809.2,1.28318029]
[1645841284837,0.00505382,2809.3,2809.2,1.28318029]
[1645841285636,1.2274,2810.3,2809.2,1.28318029]
[1645841285837,1.34418298,2810.2,2809.2,1.28318029]
[1645841286039,0.00505396,2809.4,2809.2,1.28318029]
[1645841286703,0.00505396,2809.4,2809.2,12.76778029]
[1645841286909,0.15901404,2810.8,2809.2,12.76778029]
[1645841286910,0.1423,2810.9,2809.3,16.6096]
[1645841287104,1.50423081,2810.8,2809.3,20.0744]
[1645841287304,0.4969,2811.0,2809.5,11.1846]
[1645841287305,1.50428955,2810.7,2809.5,11.1846]
[1645841287507,0.1423,2811.0,2809.7,0.3546]
[1645841287706,1.50426184,2810.9,2809.7,0.725]
[1645841288103,1.11778178,2810.6,2809.7,0.725]
[1645841288305,1.11778178,2810.6,2809.7,1.61467]
[1645841288504,1.11778178,2810.6,2809.7,0.425]
[1645841288505,0.00505396,2810.4,2809.7,0.425]
[1645841289411,1.26008178,2810.6,2809.8,1.01893082]
[1645841289708,0.0045559,2810.2,2809.8,1.01893082]
[1645841290438,0.1423,2810.6,2809.8,1.01893082]
[1645841290641,0.25,2810.7,2809.8,1.01893082]
[1645841290838,0.0045559,2810.1,2809.8,1.01893082]
[1645841291744,0.1423,2810.6,2809.8,1.01893082]
[1645841291948,0.0045559,2810.1,2809.5,2.9274]
[1645841292944,1.27079763,2810.4,2809.7,1.34131375]
[1645841293147,0.00505396,2809.9,2809.7,1.34131375]
[1645841294192,0.1423,2810.6,2809.7,1.34131375]
[1645841294392,0.00505396,2809.9,2809.7,1.34131375]
[1645841295296,1.14643957,2810.4,2809.7,1.34131375]
[1645841295497,1.50103957,2810.4,2809.4,1.1292]
[1645841295699,0.00505396,2809.9,2809.4,1.1292]
[1645841296802,0.00505396,2809.8,2809.4,1.1292]
[1645841297848,0.00505396,2809.8,2809.6,1.12260748]
[1645841298056,0.00505396,2809.7,2809.6,1.12260748]
[1645841298849,1.14643957,2810.4,2809.6,1.02260748]
[1645841299250,0.00505396,2809.8,2809.6,1.02260748]
[1645841300053,1.14643957,2810.4,2809.6,1.02260748]
[1645841300251,1.14643957,2810.4,2809.4,1.1292]
[1645841300453,0.00505396,2809.8,2809.4,1.4292]
[1645841301297,0.3546,2810.6,2809.4,1.4292]
[1645841301698,0.00505396,2809.7,2809.4,1.4292]
[1645841302501,1.35469316,2810.3,2809.5,1.11790594]
[1645841302798,0.1423,2810.5,2809.5,1.11790594]
[1645841302799,0.00505396,2809.7,2809.5,1.11790594]
[1645841303802,1.29631618,2810.5,2809.5,1.11790594]
[1645841304002,0.00505396,2809.7,2809.5,1.11790594]
[1645841305247,0.00505396,2809.7,2809.5,1.06790594]
[1645841306048,1.29631618,2810.5,2809.5,1.06790594]
[1645841306453,0.00505396,2809.7,2809.5,1.06790594]
[1645841307353,1.29631618,2810.5,2809.5,1.06790594]
[1645841307566,0.00505396,2809.7,2809.5,1.06790594]
[1645841308160,0.00505396,2809.7,2809.4,1.1292]
[1645841308561,3.9969,2810.4,2809.3,0.5]
[1645841308562,0.3546,2809.9,2809.3,0.5]
[1645841308807,1.1538,2809.7,2808.5,5.0709]
[1645841309006,0.3546,2809.5,2808.7,0.0057088]
[1645841309206,1.23688118,2809.2,2808.7,0.0057088]
[1645841309808,1.23688118,2809.2,2808.3,1.1356]
[1645841310007,1.23688118,2809.2,2808.7,0.00570848]
[1645841310210,0.00505355,2809.3,2808.7,0.00570848]
[1645841311010,1.9938,2809.7,2808.3,1.24471]
[1645841311210,0.00505364,2809.3,2809.1,1.35693472]
[1645841311910,0.00505364,2809.3,2808.7,0.0057085]
[1645841312111,0.6046,2809.8,2808.4,2.2465]
[1645841312312,0.25,2809.8,2808.7,0.00419422]
[1645841312770,0.6046,2809.8,2808.7,0.00419422]
[1645841313164,1.38417394,2809.6,2809.0,1.42755862]
[1645841313364,1.38417394,2809.6,2808.4,1.2465]
[1645841313664,1.38417394,2809.6,2808.4,0.73069422]
[1645841314466,1.38417394,2809.6,2808.8,1.36993523]
[1645841315066,0.1423,2809.7,2808.8,1.36993523]
[1645841315469,1.4914,2809.8,2808.8,1.36993523]
[1645841315769,0.25,2809.9,2808.8,1.36993523]
[1645841316198,0.25,2809.9,2808.8,1.66993523]
[1645841316605,0.25,2809.9,2808.8,1.16993523]
[1645841317807,0.25,2809.9,2808.9,10.83]
[1645841318207,0.25,2809.9,2808.9,11.13]
[1645841318407,0.00507165,2809.5,2808.9,0.3]
[1645841318705,0.00507165,2809.5,2808.8,0.3]
[1645841318706,0.00507165,2809.5,2808.6,4.23071106]
[1645841318908,0.00507165,2809.5,2808.6,0.73071106]
[1645841319310,0.25,2809.9,2808.6,0.725]
[1645841319508,1.3842,2810.2,2809.1,12.27033003]
[1645841319708,0.00507153,2809.3,2809.2,14.33]
[1645841319982,0.00507153,2809.3,2809.2,11.255]
[1645841320167,0.00507153,2809.3,2809.2,11.555]
[1645841320370,0.00507153,2809.3,2809.2,15.055]
[1645841320567,4.1661,2810.7,2809.2,15.055]
[1645841320568,1.14348014,2810.5,2809.2,15.4096]
[1645841320772,0.00507165,2809.4,2809.2,4.5796]
[1645841320972,0.00507165,2809.4,2809.2,1.0796]
[1645841321873,2.4116,2810.7,2810.0,1.38946682]
[1645841321874,1.05422277,2810.6,2810.0,1.38946682]
[1645841322075,1.05422277,2810.6,2809.4,6.3601]
[1645841322379,1.05422277,2810.6,2809.4,2.8601]
[1645841322576,1.05422277,2810.6,2809.4,2.6001]
[1645841323377,0.00507165,2810.1,2809.4,2.6001]
[1645841324220,0.1423,2810.5,2809.1,1.6092]
[1645841324221,0.25,2810.3,2809.1,1.6092]
[1645841324423,1.21802072,2809.3,2808.6,0.00571128]
[1645841325320,1.21802072,2809.3,2808.5,1.5153]
[1645841325518,1.21802072,2809.3,2808.5,2.77755223]
[1645841325728,1.57769207,2809.3,2808.6,0.00571084]
[1645841326520,1.57262072,2809.3,2808.1,0.42917708]
[1645841326724,1.57262072,2809.3,2808.6,0.00571084]
[1645841326725,1.57769207,2809.3,2808.6,0.00571084]
[1645841327753,1.57262072,2809.3,2808.4,1.0625133]
[1645841327955,1.57769207,2809.3,2808.6,0.00571084]
[1645841328557,1.57769207,2809.3,2808.4,0.56822414]
[1645841328956,1.57262072,2809.3,2808.4,0.56822414]
[1645841330457,0.00152572,2809.1,2808.4,0.56822414]
[1645841331406,0.1424,2809.6,2808.4,0.56822414]
[1645841331606,0.00508556,2809.1,2808.5,0.00571094]
[1645841332606,1.31870178,2809.2,2808.4,0.30240122]
[1645841332804,1.31870178,2809.2,2808.5,0.00571096]
[1645841332805,0.00508565,2809.1,2808.5,0.00571096]
[1645841333507,1.31870178,2809.2,2808.5,0.00571096]
[1645841333706,1.31870178,2809.2,2808.4,0.30240122]
[1645841334206,0.00508565,2809.1,2808.5,0.00571096]
[1645841335045,1.31870178,2809.2,2808.2,0.00417708]
[1645841335247,1.3202274,2809.2,2808.2,0.00417708]
[1645841335747,1.3202274,2809.2,2808.4,1.06834324]
[1645841335952,1.3202274,2809.2,2808.2,0.00417708]
[1645841336156,0.13819997,2809.1,2808.2,0.00417708]
[1645841336353,0.13819997,2809.1,2808.0,0.00417708]
[1645841336354,0.7992,2808.6,2808.0,0.00417708]
[1645841336551,0.7992,2808.6,2808.0,0.02702436]
[1645841336552,3.8546,2808.5,2808.0,0.02702436]
[1645841336757,4.9038,2808.5,2808.0,0.02702436]
[1645841336955,0.3546,2808.3,2808.0,0.02702436]
[1645841337153,0.3546,2808.1,2808.0,0.02284728]
[1645841337353,3.8546,2808.1,2807.8,0.40961526]
[1645841337654,3.8546,2808.1,2808.0,0.00419001]
[1645841337856,4.6538,2808.1,2808.0,0.00419001]
[1645841338054,1.1538,2808.1,2808.0,0.00419001]
[1645841338255,1.2962,2808.1,2808.0,0.00419001]
[1645841338737,1.2962,2808.1,2807.3,1.5449]
[1645841338921,0.1424,2808.0,2807.9,0.00571228]
[1645841339320,1.1538,2808.1,2807.9,0.00571228]
[1645841339722,1.1538,2808.1,2806.8,1.6385]
[1645841339723,1.1538,2808.1,2807.1,1.19124238]
[1645841339923,1.1538,2808.1,2806.8,3.4865]
[1645841340124,1.1538,2808.1,2807.9,0.00571235]
[1645841340324,4.6538,2808.0,2807.9,0.00571235]
[1645841340722,4.8546,2808.0,2807.2,3.37769998]
[1645841340921,0.3546,2807.7,2807.2,3.37769998]
[1645841341523,1.1538,2807.8,2807.2,3.37769998]
[1645841341722,0.7992,2807.8,2807.2,3.37769998]
[1645841341923,0.7992,2807.8,2807.5,1.12918917]
[1645841342123,1.0,2808.4,2807.5,1.12918917]
[1645841342322,0.7992,2808.4,2807.5,1.12918917]
[1645841342559,0.3546,2808.3,2807.5,1.12918917]
[1645841343359,1.04494829,2808.2,2807.5,1.12918917]
[1645841343559,0.00154399,2808.0,2807.5,1.12918917]
[1645841343761,0.00154399,2808.0,2807.6,11.255]
[1645841344162,0.00154399,2808.0,2807.7,0.3546]
[1645841344364,0.00154399,2808.0,2807.8,0.425]
[1645841344564,0.13819997,2809.1,2807.8,0.425]
[1645841344764,1.37531422,2808.8,2807.9,0.00415766]
[1645841344964,0.00514662,2808.0,2807.9,0.00415766]
[1645841345164,0.00514662,2808.0,2807.8,0.425]
[1645841345769,1.37531422,2808.8,2807.8,0.425]
[1645841345964,1.37531422,2808.8,2808.0,1.16307318]
[1645841346219,1.37531422,2808.8,2807.9,0.30415766]
[1645841346411,1.37531422,2808.8,2807.9,0.00415766]
[1645841346614,1.37531422,2808.8,2807.6,4.34715766]
[1645841347213,1.37531422,2808.8,2807.6,15.17715766]
[1645841347214,0.00514662,2808.3,2807.6,15.17715766]
[1645841347413,0.00514662,2808.3,2807.6,2.99255766]
[1645841347614,0.00514662,2808.3,2807.6,2.56755766]
[1645841348217,4.6538,2808.7,2807.6,2.56755766]
[1645841348415,0.00514662,2808.1,2807.6,2.56755766]
[1645841348617,1.42582666,2808.1,2807.6,2.56755766]
[1645841348814,1.42582666,2808.1,2807.5,3.10013871]
[1645841349015,1.42582666,2808.1,2807.5,1.11373871]
[1645841349413,1.42068004,2808.1,2807.5,1.11373871]
[1645841349613,0.00514662,2807.9,2807.4,0.3]
[1645841349815,0.00514662,2807.9,2807.3,0.30571347]
[1645841349816,0.00514662,2807.9,2807.3,0.00571347]
[1645841350653,1.42068004,2808.1,2807.3,1.22139868]
[1645841351053,0.00514662,2807.7,2807.3,1.22711204]
[1645841351858,1.42068004,2808.1,2807.3,1.22139868]
[1645841352057,1.7246,2808.6,2807.3,1.22711198]
[1645841352256,0.00514662,2807.6,2807.3,1.22711198]
[1645841353257,1.36626904,2807.9,2807.2,10.82769998]
[1645841353456,0.00514662,2807.6,2807.3,0.00571327]
[1645841354131,1.36626904,2807.9,2807.2,3.37769998]
[1645841354534,0.00438101,2807.6,2807.3,0.00548356]
[1645841356534,0.00438101,2807.6,2807.2,3.37769998]
[1645841356734,0.9416,2808.3,2807.2,3.37769998]
[1645841356935,0.00438101,2807.6,2807.3,0.00943449]
[1645841357138,0.00438101,2807.6,2807.5,11.1846]
[1645841357338,0.00438101,2807.6,2807.5,11.6096]
[1645841357755,3.2171,2808.9,2807.5,12.5596]
[1645841357956,3.2171,2808.9,2807.7,11.1346]
[1645841358160,3.2171,2808.9,2807.8,11.5596]
[1645841358362,3.2171,2808.9,2807.8,11.563736]
[1645841358761,0.1424,2809.0,2807.8,11.563736]
[1645841358962,0.25,2809.0,2807.8,11.563736]
[1645841359161,1.18363813,2808.8,2808.3,1.25618708]
[1645841359365,0.00487744,2808.5,2807.8,4.979836]
[1645841359562,0.00487744,2808.5,2807.8,5.404836]
[1645841360563,0.00487744,2808.3,2807.9,1.32409362]
[1645841360763,0.00487744,2808.3,2808.0,0.004136]
[1645841360962,0.00487744,2808.3,2807.9,1.32409362]
[1645841361415,0.25,2809.0,2807.9,1.32409362]
[1645841361709,0.0044157,2808.2,2808.0,0.004136]
[1645841362009,0.0044157,2808.2,2807.9,1.32409362]
[1645841362611,1.39970526,2808.7,2807.9,1.32409362]
[1645841362809,1.39970526,2808.7,2807.9,1.32822962]
[1645841363010,0.0044157,2808.2,2807.9,1.32822962]
[1645841363312,0.0044157,2808.2,2808.0,11.1846]
[1645841363511,0.0044157,2808.2,2808.1,11.6096]
[1645841363711,0.0044157,2808.2,2808.1,11.9096]
[1645841363913,0.7992,2809.6,2808.1,12.9096]
[1645841364111,1.1627,2809.7,2808.2,0.004136]
[1645841364312,1.1627,2809.7,2808.4,11.1846]
[1645841364313,1.3051,2809.7,2808.4,11.1846]
[1645841364514,1.3051,2809.7,2808.6,0.3546]
[1645841364712,1.3051,2809.7,2808.7,0.7796]
[1645841364965,1.3341302,2809.2,2808.7,0.7796]
[1645841365158,0.1424,2809.7,2808.7,0.7796]
[1645841365359,0.00154399,2809.3,2808.7,1.0796]
[1645841366162,0.1424,2809.7,2808.7,1.0796]
[1645841366565,0.00154399,2809.1,2808.7,1.0796]
[1645841367368,1.03430596,2809.4,2808.7,1.0796]
[1645841367767,0.00513562,2809.0,2808.7,1.0796]
[1645841367967,0.00513562,2809.0,2808.8,10.83]
[1645841368368,0.00513562,2809.0,2808.9,11.255]
[1645841368569,0.1424,2809.9,2808.9,11.255]
[1645841368821,0.13819997,2810.1,2808.9,12.14492]
[1645841369021,0.00513562,2809.0,2808.9,12.49952]
[1645841369821,1.17865249,2809.8,2808.9,12.49952]
[1645841370023,1.17865249,2809.8,2809.1,1.09874193]
[1645841370227,1.17865249,2809.8,2809.1,1.39874193]
[1645841370422,0.13819997,2810.1,2809.1,1.39874193]
[1645841371330,0.00513562,2809.7,2809.1,1.39874193]
[1645841371629,0.00513562,2809.7,2809.1,0.3]
[1645841371827,0.00513562,2809.7,2808.9,15.41792]
[1645841372226,0.12616559,2810.1,2808.9,15.41792]
[1645841372464,0.00422752,2809.4,2808.9,15.41792]
[1645841372865,0.00422752,2809.4,2809.1,0.3]
[1645841373264,0.00422752,2809.4,2808.9,13.44492]
[1645841373466,1.35275656,2809.8,2808.9,12.14492]
[1645841373667,0.00422752,2809.4,2808.9,12.44492]
[1645841373866,0.00422752,2809.4,2809.0,1.36971651]
[1645841374471,0.00422752,2809.4,2809.0,12.19971651]
[1645841374671,0.12616559,2810.1,2809.0,12.19971651]
[1645841374871,0.00422752,2809.3,2809.1,0.425]
[1645841375270,0.00422752,2809.3,2809.1,0.725]
[1645841375873,0.12616559,2810.1,2809.1,0.725]
[1645841376072,0.00513562,2809.3,2809.1,0.725]
[1645841376313,0.00513562,2809.3,2809.1,11.555]
[1645841376514,0.00513562,2809.3,2809.1,0.725]
[1645841377117,0.3546,2809.8,2808.7,5.65393438]
[1645841377319,0.00513562,2809.3,2808.7,5.65393438]
[1645841378022,1.1110979,2809.2,2808.7,5.65393438]
[1645841378216,1.1110979,2809.2,2808.7,1.65843438]
[1645841378517,0.00513562,2809.1,2808.7,0.01203438]
[1645841378716,0.00513562,2809.1,2808.3,0.004136]
[1645841378920,0.3546,2809.0,2808.3,0.004136]
[1645841379515,1.05471996,2808.5,2808.3,0.004136]
[1645841379716,1.05471996,2808.5,2808.1,0.004136]
[1645841379962,1.05471996,2808.5,2807.8,0.004136]
[1645841380367,1.65931996,2808.5,2807.8,0.004136]
[1645841380671,1.3920395,2808.0,2807.8,0.004136]
[1645841380862,1.3920395,2808.0,2807.6,7.45]
[1645841381065,0.00154066,2808.3,2807.6,7.45]
[1645841381267,0.00154066,2808.3,2807.7,0.004136]
[1645841381467,0.00154066,2808.3,2807.6,7.45]
[1645841381867,0.6046,2808.5,2807.6,7.45]
[1645841382068,0.00154055,2808.3,2807.7,0.004136]
[1645841382268,1.17851221,2808.0,2807.6,7.45]
[1645841382468,0.00154055,2808.3,2807.6,7.45]
[1645841383070,0.6046,2808.5,2807.6,7.4]
[1645841383270,0.00513517,2808.3,2807.7,0.004136]
[1645841383468,1.19031418,2808.0,2807.5,0.004136]
[1645841383723,0.3546,2807.9,2807.4,0.00570889]
[1645841383916,0.25,2807.8,2807.4,0.00570889]
[1645841384318,0.3924,2807.8,2807.2,3.37769998]
[1645841384716,0.3924,2807.8,2807.4,0.00570873]
[1645841385417,0.3924,2807.8,2807.2,3.37769998]
[1645841385418,0.3546,2807.5,2807.2,3.37769998]
[1645841385819,0.3546,2807.5,2807.2,2.87769998]
[1645841386217,1.3077346,2807.4,2807.2,2.87769998]
[1645841386422,1.6623346,2807.4,2807.2,2.87769998]
[1645841387222,0.7992,2807.6,2807.2,2.87769998]
[1645841387469,0.3924,2807.8,2807.2,2.87769998]
[1645841387667,0.1424,2807.7,2807.2,2.87769998]
[1645841388267,0.1424,2807.7,2807.3,0.00568722]
[1645841388668,1.09776358,2807.5,2807.2,2.3833872]
[1645841388873,0.1424,2807.7,2807.2,2.3833872]
[1645841389668,0.25,2807.8,2807.2,2.3833872]
[1645841391734,0.25154486,2807.8,2807.2,1.8833872]
[1645841392635,0.6046,2807.8,2807.2,1.8833872]
[1645841392834,0.25,2807.8,2807.2,1.88907468]
[1645841393033,0.25514954,2807.8,2807.2,1.88907468]
[1645841393835,0.25,2807.8,2807.2,1.8833872]
[1645841394236,0.25514954,2807.8,2807.2,1.88907468]
[1645841394839,0.00514954,2807.8,2807.2,1.38907468]
[1645841395089,0.1424,2808.3,2807.3,11.255]
[1645841395489,0.00514954,2807.8,2807.4,0.004136]
[1645841395692,0.00514954,2807.8,2807.3,11.255]
[1645841395693,0.00514954,2807.8,2807.5,0.425]
[1645841395891,0.00514954,2807.8,2807.3,10.83]
[1645841395892,0.00514954,2807.8,2807.6,1.85610909]
[1645841396194,1.2321,2808.6,2807.6,1.85610909]
[1645841396593,0.00514984,2807.8,2807.7,0.894446]
[1645841396794,0.00514984,2807.8,2807.7,1.31531]
[1645841396997,0.00514984,2807.8,2807.7,1.61531]
[1645841397400,0.00514984,2807.8,2807.7,1.31531]
[1645841397600,0.3546,2808.7,2807.6,1.43110909]
[1645841397797,0.00514984,2807.9,2807.7,0.004136]
[1645841397998,0.00514984,2807.9,2807.6,1.43110909]
[1645841398200,0.15966526,2808.8,2807.6,1.43110909]
[1645841398201,0.13798596,2809.4,2807.9,0.3546]
[1645841398399,0.1424,2809.8,2807.9,0.3546]
[1645841398400,0.1424,2809.8,2808.5,0.01280294]
[1645841398602,0.1424,2809.8,2808.6,14.44156806]
[1645841398836,0.00302669,2810.1,2809.1,11.1846]
[1645841399030,1.50770268,2810.6,2809.3,11.1846]
[1645841399232,0.35762669,2810.6,2809.8,0.5]
[1645841399731,0.00302669,2810.6,2809.8,1.2639448]
[1645841399930,0.00302669,2810.7,2809.8,1.2639448]
[1645841400133,0.00154495,2810.3,2809.8,1.2639448]
[1645841400530,0.00154495,2810.3,2809.4,1.8765]
[1645841400730,0.00154495,2810.3,2809.3,0.425]
[1645841400930,0.3923,2810.2,2809.0,1.9811]
[1645841401131,0.00302669,2810.1,2808.8,2.0772]
[1645841401336,0.1423,2810.0,2808.8,1.6522]
[1645841401533,0.1423,2810.0,2808.4,4.3574]
[1645841401534,0.3546,2809.4,2808.4,1.0]
[1645841401733,0.3546,2809.4,2808.0,0.004136]
[1645841401734,0.25,2809.0,2808.0,0.004136]
[1645841402136,0.25,2809.0,2808.1,0.425]
[1645841402578,0.00513697,2808.6,2808.1,0.425]
[1645841403479,0.25,2809.0,2808.1,0.425]
[1645841403882,0.00513697,2808.5,2808.1,0.425]
[1645841404680,1.06609711,2809.2,2808.7,1.40504618]
[1645841404881,0.3546,2809.5,2808.2,1.8194]
[1645841405080,0.00513697,2808.4,2808.2,1.8194]
[1645841405280,0.00513697,2808.4,2808.2,12.6494]
[1645841405481,0.00513697,2808.4,2808.2,13.89417]
[1645841405681,0.00513697,2808.4,2808.3,11.255]
[1645841405882,0.25,2809.6,2808.3,12.3120468]
[1645841406082,0.25,2809.6,2809.2,1.17865846]
[1645841406345,0.25,2809.6,2808.5,0.425]
[1645841406549,0.25,2809.6,2808.4,0.425]
[1645841407445,0.00513697,2809.1,2808.4,0.725]
[1645841407645,0.00513697,2809.1,2809.0,1.05216431]
[1645841407846,0.00513697,2809.1,2808.4,0.725]
[1645841408246,0.25,2809.6,2808.4,11.555]
[1645841408445,0.6046,2809.6,2808.4,0.725]
[1645841408644,0.00421289,2808.9,2808.4,0.725]
[1645841408845,0.00421289,2808.9,2808.5,1.42934146]
[1645841409049,0.00421289,2808.9,2808.5,1.85434146]